fUST/lending_fUST_20251015
["ID","MTS","AMOUNT","RATE_DAILY","PERIOD"]
[391289509,1760470264816,500.0,0.00030445,60]
[391289534,1760470265048,500.0,0.00030445,60]
[391289559,1760470265283,500.0,0.00030445,60]
[391289586,1760470265548,500.0,0.00030445,60]
[391289609,1760470265790,500.0,0.00030445,60]
[391289639,1760470266105,500.0,0.00030445,60]
[391289662,1760470266352,469.51513363,0.00030445,60]
[391293180,1760470318747,500.0,0.00030445,60]
[391293181,1760470319084,500.0,0.00030445,60]
[391293182,1760470319331,435.81084967,0.00030445,60]
[391293183,1760470329519,1040.85,0.00030445,60]
[391293184,1760470329769,1040.85,0.00030445,60]
[391293185,1760470330001,1040.85,0.00030445,60]
[391293186,1760470330347,1040.85,0.00030445,60]
[391293188,1760470330573,1040.85,0.00030445,60]
[391293189,1760470330804,1040.85,0.00030445,60]
[391293190,1760470331035,1040.85,0.00030445,60]
[391293191,1760470331275,1040.85,0.00030445,60]
[391293192,1760470331345,1694.29,0.00030445,60]
[391293193,1760470331525,1040.85,0.00030445,60]
[391293194,1760470331588,1694.29,0.00030445,60]
[391293195,1760470331820,1694.29,0.00030445,60]
[391293196,1760470332044,1694.29,0.00030445,60]
[391293197,1760470332107,1040.85,0.00030445,60]
[391293198,1760470332272,1694.29,0.00030445,60]
[391293199,1760470332353,1040.85,0.00030445,60]
[391293200,1760470332500,1694.29,0.00030445,60]
[391293201,1760470332712,1040.85,0.00030445,60]
[391293202,1760470332753,1694.29,0.00030445,60]
[391293203,1760470332867,1040.85,0.00030445,60]
[391293204,1760470333008,1694.29,0.00030445,60]
[391293205,1760470333104,1040.85,0.00030445,60]
[391293206,1760470333266,1694.29,0.00030445,60]
[391293207,1760470333368,1040.85,0.00030445,60]
[391293208,1760470333577,1694.29,0.00030445,60]
[391293209,1760470333630,1040.85,0.00030445,60]
[391293210,1760470333827,1694.29,0.00030445,60]
[391293211,1760470333881,1040.85,0.00030445,60]
[391293212,1760470334075,1694.29,0.00030445,60]
[391293213,1760470334149,1040.85,0.00030445,60]
[391293214,1760470334300,1694.29,0.00030445,60]
[391293215,1760470334475,1040.85,0.00030445,60]
[391293216,1760470334611,1694.29,0.00030445,60]
[391293217,1760470334765,1040.85,0.00030445,60]
[391293218,1760470334838,1694.29,0.00030445,60]
[391293219,1760470335044,1040.85,0.00030445,60]
[391293220,1760470335084,1694.29,0.00030445,60]
[391293221,1760470335290,1040.85,0.00030445,60]
[391293222,1760470335337,1694.29,0.00030445,60]
[391293223,1760470335528,1040.85,0.00030445,60]
[391293224,1760470335568,1694.29,0.00030445,60]
[391293225,1760470335801,1694.29,0.00030445,60]
[391293226,1760470335857,1041.0327702,0.00030445,60]
[391293227,1760470336400,1694.29,0.00030445,60]
[391293228,1760470336661,1694.29,0.00030445,60]
[391293229,1760470336898,1694.29,0.00030445,60]
[391293230,1760470337131,1694.29,0.00030445,60]
[391293231,1760470337366,1694.50302087,0.00030445,60]
[391293232,1760470339226,500.0,0.00030445,60]
[391293233,1760470339482,500.0,0.00030445,60]
[391293234,1760470339726,500.0,0.00030445,60]
[391293235,1760470340151,500.0,0.00030445,60]
[391293236,1760470340459,500.0,0.00030445,60]
[391293237,1760470340715,500.0,0.00030445,60]
[391293238,1760470340947,500.0,0.00030445,60]
[391293239,1760470341174,500.0,0.00030445,60]
[391293240,1760470341423,500.0,0.00030445,60]
[391293241,1760470341686,500.0,0.00030445,60]
[391293242,1760470341953,271.04,0.00030445,60]
[391293257,1760470502320,481.35617842,0.0003044,60]
[391293259,1760470504310,508.17,0.0003044,60]
[391293260,1760470504554,508.17,0.0003044,60]
[391293261,1760470504793,508.17,0.0003044,60]
[391293262,1760470505050,508.17,0.0003044,60]
[391293264,1760470505309,508.17,0.0003044,60]
[391293265,1760470505572,508.17,0.0003044,60]
[391293266,1760470505831,508.17,0.0003044,60]
[391293267,1760470506082,508.17,0.0003044,60]
[391293268,1760470506378,508.17,0.0003044,60]
[391293269,1760470506655,508.17,0.0003044,60]
[391293270,1760470506942,508.17,0.0003044,60]
[391293271,1760470507200,508.17,0.0003044,60]
[391293272,1760470507447,508.17,0.0003044,60]
[391293273,1760470507696,508.17,0.0003044,60]
[391293274,1760470507921,508.17,0.0003044,60]
[391293275,1760470508196,508.17,0.0003044,60]
[391293276,1760470508335,-150.0,0.00019702,2]
[391293277,1760470508377,-150.0,0.0002064,2]
[391293278,1760470508417,-150.0,0.00021578,2]
[391293279,1760470508458,-150.0,0.00022516,2]
[391293280,1760470508498,-34.41,0.00023455,2]
[391293281,1760470508512,-131.18,0.00023455,2]
[391293282,1760470508524,-18.82,0.00024,2]
[391293283,1760470508541,-150.0,0.00024,2]
[391293284,1760470508554,-150.0,0.00024,2]
[391293285,1760470508615,508.17,0.0003044,60]
[391293286,1760470508629,-25.89,0.00024,2]
[391293287,1760470508641,-124.11,0.00024,2]
[391293288,1760470508661,-165.59,0.00024,2]
[391293289,1760470508745,508.17,0.0003044,60]
[391293290,1760470508976,508.17,0.0003044,60]
[391293291,1760470509225,508.17,0.0003044,60]
[391293292,1760470509476,508.17,0.0003044,60]
[391293293,1760470509710,508.17,0.0003044,60]
[391293294,1760470509959,508.17,0.0003044,60]
[391293295,1760470510218,508.30002757,0.0003044,60]
[391293297,1760470519592,500.0,0.0003044,60]
[391293298,1760470519848,500.0,0.0003044,60]
[391293299,1760470520081,500.0,0.0003044,60]
[391293300,1760470520350,500.0,0.0003044,60]
[391293301,1760470520626,500.0,0.0003044,60]
[391293302,1760470520878,500.0,0.0003044,60]
[391293303,1760470521119,500.0,0.0003044,60]
[391293304,1760470521371,500.0,0.0003044,60]
[391293305,1760470521621,500.0,0.0003044,60]
[391293306,1760470521894,500.0,0.0003044,60]
[391293307,1760470522136,500.0,0.0003044,60]
[391293308,1760470522372,500.0,0.0003044,60]
[391293309,1760470522615,500.0,0.0003044,60]
[391293310,1760470522958,500.0,0.0003044,60]
[391293311,1760470523120,500.0,0.0003044,60]
[391293312,1760470523367,500.0,0.0003044,60]
[391293313,1760470523636,500.0,0.0003044,60]
[391293314,1760470523922,500.0,0.0003044,60]
[391293315,1760470524222,500.0,0.0003044,60]
[391293316,1760470524465,500.0,0.0003044,60]
[391293317,1760470524722,512.39642219,0.0003044,60]
[391293319,1760470570061,500.0,0.0003044,60]
[391293320,1760470570341,509.8,0.0003044,60]
[391293321,1760470571561,500.0,0.0003044,60]
[391293322,1760470571822,500.0,0.0003044,60]
[391293323,1760470572054,500.0,0.0003044,60]
[391293324,1760470572316,500.0,0.0003044,60]
[391293325,1760470572572,500.0,0.0003044,60]
[391293326,1760470573011,500.0,0.0003044,60]
[391293327,1760470573250,222.47454733,0.0003044,60]
[391293328,1760470575480,781.28,0.0003044,60]
[391293329,1760470575759,781.28,0.0003044,60]
[391293330,1760470576106,781.28,0.0003044,60]
[391293331,1760470576246,781.28,0.0003044,60]
[391293332,1760470576538,781.28,0.0003044,60]
[391293333,1760470576781,781.28,0.0003044,60]
[391293334,1760470577021,781.28,0.0003044,60]
[391293335,1760470577307,781.28,0.0003044,60]
[391293336,1760470577547,781.28,0.0003044,60]
[391293337,1760470577791,781.28,0.0003044,60]
[391293338,1760470578031,781.28,0.0003044,60]
[391293339,1760470578292,781.28,0.0003044,60]
[391293340,1760470578544,781.28,0.0003044,60]
[391293341,1760470578809,781.28,0.0003044,60]
[391293342,1760470579046,781.28,0.0003044,60]
[391293343,1760470579323,781.28,0.0003044,60]
[391293344,1760470579582,781.28,0.0003044,60]
[391293345,1760470579849,781.28,0.0003044,60]
[391293346,1760470580100,781.28,0.0003044,60]
[391293347,1760470580360,781.28,0.0003044,60]
[391293348,1760470580649,781.28,0.0003044,60]
[391293349,1760470580896,781.28,0.0003044,60]
[391293350,1760470581125,781.28,0.0003044,60]
[391293351,1760470581357,781.35927223,0.0003044,60]
[391293394,1760471269062,2740539.54025651,0.00030439,60]
[391293397,1760471405802,790.91,0.00028493,120]
[391293481,1760471435078,-274.76095218,0.00019558,2]
[391293483,1760471435088,-150.0,0.00019567,2]
[391293484,1760471435098,-165.04515383,0.0001961,2]
[391293485,1760471435107,-137.92714822,0.00020499,2]
[391293486,1760471435131,-12.07285178,0.00020499,2]
[391293487,1760471435141,-150.0,0.00021431,2]
[391293488,1760471435150,-150.0,0.00022362,2]
[391293489,1760471435159,-150.0,0.00023294,2]
[391293490,1760471435168,-63.51138093,0.00023755,2]
[391293532,1760471438025,-464.61486807,0.00023755,2]
[391293534,1760471438034,-320.00318905,0.00024,2]
[391293536,1760471438045,-1608.75681095,0.00024,2]
[391293538,1760471438054,-150.0,0.00024226,2]
[391293540,1760471438063,-15813.02226301,0.00025105,2]
[391293542,1760471438074,-9143.91710313,0.00025105,2]
[391293544,1760471438085,-7855.36806055,0.00025105,2]
[391293547,1760471438102,-1761.02883035,0.00025105,2]
[391293549,1760471438113,-279.10748082,0.00025105,2]
[391293551,1760471438126,-2124.26143167,0.00025105,2]
[391293554,1760471438137,-820.95596561,0.00025105,2]
[391293556,1760471438148,-265.12036769,0.00025105,2]
[391293558,1760471438159,-607.50848449,0.00025105,2]
[391293592,1760471440080,-1801.82928709,0.00025105,2]
[391293593,1760471440092,-761.33082744,0.00025105,2]
[391293616,1760471443285,-52.56728291,0.00025105,2]
[391293658,1760471446189,-8713.98261524,0.00025105,2]
[391293659,1760471446198,-164.13438117,0.00025105,2]
[391293660,1760471446208,-163.62,0.00025158,2]
[391293661,1760471446217,-257.6,0.00025205,7]
[391293662,1760471446226,-175.614,0.00026009,12]
[391293663,1760471446235,-186.99,0.00026089,2]
[391293664,1760471446244,-300.0,0.00026547,30]
[391293665,1760471446253,-300.0,0.00026547,30]
[391293666,1760471446262,-300.0,0.00026547,30]
[391293667,1760471446272,-300.0,0.00026547,30]
[391293668,1760471446281,-300.0,0.00026547,30]
[391293669,1760471446290,-300.0,0.00026547,30]
[391293670,1760471446300,-300.0,0.00026547,30]
[391293671,1760471446309,-300.0,0.00026547,30]
[391293672,1760471446318,-300.0,0.00026547,30]
[391293674,1760471446327,-300.0,0.00026547,30]
[391293675,1760471446340,-300.0,0.00026547,30]
[391293676,1760471446360,-300.0,0.00026547,30]
[391293677,1760471446373,-300.0,0.00026547,30]
[391293678,1760471446382,-300.0,0.00026547,30]
[391293679,1760471446391,-300.0,0.00026547,30]
[391293680,1760471446400,-417.15472785,0.00026829,2]
[391293681,1760471446409,-565.94529505,0.00026844,2]
[391293682,1760471446418,-210.36,0.00027021,2]
[391293683,1760471446428,-600.0,0.00027077,30]
[391293684,1760471446437,-221.270465,0.00027381,2]
[391293685,1760471446446,-1000.0,0.00027397,2]
[391293686,1760471446455,-1000.0,0.00027397,2]
[391293687,1760471446464,-1114.70358731,0.00027397,2]
[391293688,1760471446473,-250.0,0.0002767,2]
[391293689,1760471446483,-213.8061688,0.0002767,2]
[391293690,1760471446492,-2408.0,0.00027812,7]
[391293691,1760471446500,-233.74,0.00027953,2]
[391293692,1760471446510,-189.8496045,0.0002835,30]
[391293693,1760471446519,-153.0,0.0002835,30]
[391293694,1760471446528,-189.8496045,0.0002835,30]
[391293695,1760471446538,-153.0,0.0002835,30]
[391293696,1760471446547,-194.2331127,0.0002835,30]
[391293697,1760471446557,-800.0,0.00028453,7]
[391293698,1760471446566,-1409.13738262,0.00028479,2]
[391293699,1760471446575,-10000.0,0.00028493,2]
[391293700,1760471446584,-925.0,0.00028493,2]
[391293701,1760471446593,-1982.0,0.00028504,2]
[391293702,1760471446608,-1409.13738262,0.00028512,2]
[391293703,1760471446617,-484.01,0.00028691,2]
[391293704,1760471446626,-651.7145538,0.00028791,2]
[391293705,1760471446636,-281.0930288,0.00028791,2]
[391293706,1760471446645,-1517.8208994,0.00028791,2]
[391293707,1760471446654,-324.700048,0.000288,30]
[391293708,1760471446664,-320.506373,0.000288,30]
[391293709,1760471446673,-1982.0,0.00028824,2]
[391293710,1760471446682,-639.03,0.0002889,10]
[391293711,1760471446695,-21832.51621852,0.000289,2]
[391293712,1760471446704,-766.84,0.00028928,10]
[391293713,1760471446714,-37997.0149694,0.00028938,2]
[391293714,1760471446723,-4999.0,0.00028967,2]
[391293715,1760471446734,-476.48,0.0002897,3]
[391293716,1760471446743,-3246.0,0.00028979,7]
[391293717,1760471446752,-1177.6291172,0.00028986,30]
[391293718,1760471446762,-635.26,0.0002899,3]
[391293719,1760471446771,-317.63,0.0002899,3]
[391293720,1760471446780,-158.81,0.0002899,3]
[391293721,1760471446789,-37997.0149694,0.0002899,2]
[391293722,1760471446798,-36783.63437584,0.00029,120]
[391293723,1760471446807,-200.25802931,0.00029,120]
[391293724,1760471446815,-1104.65859027,0.00029,2]
[391293725,1760471446825,-1043.15,0.00029,2]
[391293726,1760471446834,-1982.0,0.00029058,2]
[391293727,1760471446843,-20826.04797227,0.00029072,4]
[391293728,1760471446855,-2246.69385583,0.00029072,2]
[391293729,1760471446864,-2246.69385583,0.00029172,2]
[391293730,1760471446873,-1043.15,0.00029174,2]
[391293731,1760471446882,-162.9892445,0.00029188,30]
[391293732,1760471446891,-298.0923344,0.00029188,30]
[391293733,1760471446900,-298.0923344,0.00029188,30]
[391293734,1760471446909,-162.9892445,0.00029188,30]
[391293735,1760471446918,-153.0,0.00029188,30]
[391293736,1760471446927,-298.0923344,0.00029188,30]
[391293737,1760471446935,-153.0,0.00029188,30]
[391293738,1760471446944,-189.8496045,0.00029188,30]
[391293739,1760471446953,-162.9892445,0.00029188,30]
[391293740,1760471446962,-189.8496045,0.00029188,30]
[391293741,1760471446972,-153.0,0.00029188,30]
[391293742,1760471446980,-189.8496045,0.00029188,30]
[391293743,1760471446989,-153.0,0.00029188,30]
[391293744,1760471446998,-324.700048,0.00029212,30]
[391293745,1760471447007,-320.506373,0.00029212,30]
[391293746,1760471447016,-600.0,0.00029217,2]
[391293747,1760471447025,-1060.5796671,0.00029244,2]
[391293748,1760471447033,-2246.69385583,0.00029272,2]
[391293749,1760471447042,-800.0,0.00029275,7]
[391293750,1760471447051,-166.65301315,0.00029315,5]
[391293751,1760471447060,-2150.76529268,0.00029324,2]
[391293752,1760471447069,-191.76933916,0.00029334,2]
[391293753,1760471447078,-151.93341384,0.00029342,30]
[391293754,1760471447087,-1043.15,0.00029348,2]
[391293755,1760471447096,-2246.69385583,0.00029372,2]
[391293756,1760471447108,-945.0,0.000294,7]
[391293757,1760471447117,-1625.489778,0.000294,3]
[391293758,1760471447126,-151.0,0.00029414,30]
[391293759,1760471447135,-151.0,0.00029414,30]
[391293760,1760471447144,-151.0,0.00029414,30]
[391293761,1760471447153,-151.0,0.00029414,30]
[391293762,1760471447162,-151.0,0.00029414,30]
[391293763,1760471447171,-151.0,0.00029414,30]
[391293764,1760471447180,-151.0,0.00029414,30]
[391293765,1760471447188,-151.0,0.00029414,30]
[391293766,1760471447197,-156.829808,0.00029414,30]
[391293767,1760471447206,-151.0,0.00029414,30]
[391293768,1760471447219,-156.829808,0.00029414,30]
[391293769,1760471447228,-151.0,0.00029414,30]
[391293770,1760471447238,-156.829808,0.00029414,30]
[391293771,1760471447247,-151.0,0.00029414,30]
[391293772,1760471447256,-203.110497,0.00029414,30]
[391293773,1760471447265,-156.829808,0.00029414,30]
[391293774,1760471447274,-229.974319,0.00029414,30]
[391293775,1760471447283,-259.384196,0.00029414,30]
[391293776,1760471447292,-665.100187,0.00029414,30]
[391293777,1760471447301,-259.384196,0.00029414,30]
[391293778,1760471447310,-665.100187,0.00029414,30]
[391293779,1760471447319,-259.384196,0.00029414,30]
[391293780,1760471447328,-665.100187,0.00029414,30]
[391293781,1760471447337,-259.384196,0.00029414,30]
[391293782,1760471447346,-665.100187,0.00029414,30]
[391293783,1760471447359,-275.520264,0.00029414,15]
[391293784,1760471447367,-275.520264,0.00029414,15]
[391293785,1760471447376,-151.0,0.00029414,30]
[391293786,1760471447385,-275.520264,0.00029414,15]
[391293787,1760471447394,-151.0,0.00029414,30]
[391293788,1760471447403,-275.520264,0.00029414,15]
[391293789,1760471447411,-205.214337,0.00029414,30]
[391293790,1760471447420,-151.0,0.00029414,30]
[391293791,1760471447429,-205.214337,0.00029414,30]
[391293792,1760471447438,-205.214337,0.00029414,30]
[391293793,1760471447447,-205.214337,0.00029414,30]
[391293794,1760471447456,-151.0,0.00029414,30]
[391293795,1760471447465,-151.0,0.00029414,30]
[391293796,1760471447475,-151.0,0.00029414,30]
[391293797,1760471447484,-151.0,0.00029414,30]
[391293798,1760471447493,-151.0,0.00029414,30]
[391293799,1760471447502,-151.0,0.00029414,30]
[391293800,1760471447511,-155.559281,0.00029414,30]
[391293801,1760471447520,-5232.623086,0.00029414,30]
[391293802,1760471447529,-5232.623086,0.00029414,30]
[391293803,1760471447539,-178.829912,0.00029414,30]
[391293804,1760471447547,-5232.623086,0.00029414,30]
[391293805,1760471447558,-248.584319,0.00029414,2]
[391293806,1760471447567,-151.0,0.00029414,30]
[391293807,1760471447576,-178.829912,0.00029414,30]
[391293808,1760471447586,-5232.623086,0.00029414,30]
[391293809,1760471447595,-248.584319,0.00029414,2]
[391293810,1760471447608,-178.829912,0.00029414,30]
[391293811,1760471447617,-248.584319,0.00029414,2]
[391293812,1760471447628,-178.829912,0.00029414,30]
[391293813,1760471447637,-248.584319,0.00029414,2]
[391293814,1760471447646,-75994.0299389,0.00029414,2]
[391293815,1760471447656,-155.0,0.00029423,2]
[391293816,1760471447666,-113991.044908,0.00029424,2]
[391293817,1760471447675,-151.0,0.00029424,30]
[391293818,1760471447685,-151.0,0.00029424,30]
[391293819,1760471447699,-151.0,0.00029424,30]
[391293820,1760471447708,-151.813933,0.00029424,30]
[391293821,1760471447717,-151.0,0.00029424,30]
[391293822,1760471447727,-151.0,0.00029424,30]
[391293823,1760471447737,-151.0,0.00029424,30]
[391293824,1760471447746,-193.022966,0.00029424,30]
[391293825,1760471447755,-151.0,0.00029424,30]
[391293826,1760471447766,-151.0,0.00029424,30]
[391293827,1760471447775,-151.0,0.00029424,30]
[391293828,1760471447784,-151.0,0.00029424,30]
[391293829,1760471447793,-151.0,0.00029424,30]
[391293830,1760471447803,-151.0,0.00029424,30]
[391293831,1760471447812,-150.91,0.00029424,7]
[391293832,1760471447821,-151.0,0.00029424,30]
[391293833,1760471447830,-151.0,0.00029424,30]
[391293834,1760471447839,-151.0,0.00029424,30]
[391293835,1760471447848,-151.0,0.00029424,30]
[391293836,1760471447862,-151.0,0.00029424,30]
[391293837,1760471447871,-151.0,0.00029424,30]
[391293838,1760471447881,-159.620219,0.00029424,30]
[391293839,1760471447890,-159.620219,0.00029424,30]
[391293840,1760471447899,-159.620219,0.00029424,30]
[391293841,1760471447909,-159.620219,0.00029424,30]
[391293842,1760471447918,-159.620219,0.00029424,30]
[391293843,1760471447927,-159.620219,0.00029424,30]
[391293844,1760471447937,-159.620219,0.00029424,30]
[391293845,1760471447946,-159.620219,0.00029424,30]
[391293846,1760471448056,-151.0,0.00029424,30]
[391293847,1760471448066,-151.0,0.00029424,30]
[391293848,1760471448075,-224.482135,0.00029424,30]
[391293849,1760471448084,-151.0,0.00029424,30]
[391293850,1760471448093,-224.482135,0.00029424,30]
[391293851,1760471448106,-151.0,0.00029424,30]
[391293852,1760471448115,-224.482135,0.00029424,30]
[391293853,1760471448124,-224.482135,0.00029424,30]
[391293854,1760471448134,-151.0,0.00029424,30]
[391293855,1760471448143,-151.0,0.00029424,30]
[391293856,1760471448152,-151.0,0.00029424,30]
[391293857,1760471448161,-151.0,0.00029424,30]
[391293858,1760471448171,-151.0,0.00029424,30]
[391293859,1760471448180,-221.724935,0.00029424,30]
[391293860,1760471448189,-151.0,0.00029424,30]
[391293861,1760471448198,-151.0,0.00029424,30]
[391293862,1760471448207,-164.51907,0.00029424,30]
[391293863,1760471448216,-164.51907,0.00029424,30]
[391293864,1760471448226,-164.51907,0.00029424,30]
[391293865,1760471448235,-164.51907,0.00029424,30]
[391293866,1760471448244,-151.0,0.00029424,30]
[391293867,1760471448253,-151.0,0.00029424,30]
[391293868,1760471448262,-151.0,0.00029424,30]
[391293869,1760471448271,-559.348762,0.00029424,30]
[391293870,1760471448280,-559.348762,0.00029424,30]
[391293871,1760471448289,-559.348762,0.00029424,30]
[391293872,1760471448298,-559.348762,0.00029424,30]
[391293873,1760471448307,-151.0,0.00029424,30]
[391293874,1760471448317,-151.0,0.00029424,30]
[391293875,1760471448326,-151.0,0.00029424,30]
[391293876,1760471448335,-151.0,0.00029424,30]
[391293877,1760471448344,-151.0,0.00029424,30]
[391293878,1760471448356,-151.0,0.00029424,30]
[391293879,1760471448365,-151.0,0.00029424,30]
[391293880,1760471448374,-151.0,0.00029424,30]
[391293881,1760471448383,-733.441222,0.00029424,30]
[391293882,1760471448393,-151.0,0.00029424,30]
[391293883,1760471448402,-151.0,0.00029424,30]
[391293884,1760471448411,-733.441222,0.00029424,30]
[391293885,1760471448420,-151.0,0.00029424,30]
[391293886,1760471448429,-151.0,0.00029424,30]
[391293887,1760471448439,-311.313551,0.00029424,30]
[391293888,1760471448448,-733.441222,0.00029424,30]
[391293889,1760471448457,-151.0,0.00029424,30]
[391293890,1760471448466,-151.0,0.00029424,30]
[391293891,1760471448475,-311.313551,0.00029424,30]
[391293892,1760471448484,-733.441222,0.00029424,30]
[391293893,1760471448494,-311.313551,0.00029424,30]
[391293894,1760471448503,-311.313551,0.00029424,30]
[391293895,1760471448512,-151.0,0.00029424,30]
[391293896,1760471448521,-253.262514,0.00029424,30]
[391293897,1760471448530,-151.0,0.00029424,30]
[391293898,1760471448540,-151.0,0.00029424,30]
[391293899,1760471448549,-151.0,0.00029424,30]
[391293900,1760471448558,-367.124674,0.00029424,30]
[391293901,1760471448567,-367.124674,0.00029424,30]
[391293902,1760471448576,-151.0,0.00029424,2]
[391293903,1760471448585,-367.124674,0.00029424,30]
[391293904,1760471448595,-367.124674,0.00029424,30]
[391293905,1760471448605,-213.257511,0.00029424,30]
[391293906,1760471448614,-213.257511,0.00029424,30]
[391293907,1760471448623,-213.257511,0.00029424,30]
[391293908,1760471448632,-213.257511,0.00029424,30]
[391293909,1760471448641,-151.0,0.00029424,30]
[391293910,1760471448650,-151.0,0.00029424,30]
[391293911,1760471448659,-151.0,0.00029424,30]
[391293912,1760471448668,-151.0,0.00029424,30]
[391293913,1760471448677,-151.0,0.00029424,30]
[391293914,1760471448688,-151.0,0.00029424,30]
[391293915,1760471448698,-151.0,0.00029424,30]
[391293916,1760471448707,-161.378252,0.00029424,30]
[391293917,1760471448716,-151.0,0.00029424,30]
[391293918,1760471448727,-151.0,0.00029424,30]
[391293919,1760471448736,-151.0,0.00029424,30]
[391293920,1760471448745,-153.745377,0.00029424,30]
[391293921,1760471448754,-153.745377,0.00029424,30]
[391293922,1760471448766,-153.745377,0.00029424,30]
[391293923,1760471448775,-153.745377,0.00029424,30]
[391293924,1760471448784,-151.0,0.00029424,30]
[391293925,1760471448793,-151.0,0.00029424,30]
[391293926,1760471448802,-151.0,0.00029424,30]
[391293927,1760471448811,-151.0,0.00029424,30]
[391293928,1760471448820,-151.0,0.00029424,30]
[391293929,1760471448830,-151.0,0.00029424,30]
[391293930,1760471448839,-151.0,0.00029424,30]
[391293931,1760471448848,-151.0,0.00029424,30]
[391293932,1760471448858,-151.0,0.00029424,30]
[391293933,1760471448867,-151.0,0.00029424,30]
[391293934,1760471448876,-249.813622,0.00029424,30]
[391293935,1760471448885,-249.813622,0.00029424,30]
[391293936,1760471448894,-249.813622,0.00029424,30]
[391293937,1760471448903,-249.813622,0.00029424,30]
[391293938,1760471448912,-185.456468,0.00029424,30]
[391293939,1760471448921,-185.456468,0.00029424,30]
[391293940,1760471448930,-185.456468,0.00029424,30]
[391293941,1760471448939,-151.0,0.00029424,30]
[391293942,1760471448948,-185.456468,0.00029424,30]
[391293943,1760471448958,-151.0,0.00029424,30]
[391293944,1760471448967,-301.99999947,0.00029424,30]
[391293945,1760471448975,-301.78492,0.00029424,30]
[391293946,1760471448984,-301.78492,0.00029424,30]
[391293947,1760471449007,-301.78492,0.00029424,30]
[391293948,1760471449022,-301.78492,0.00029424,30]
[391293949,1760471449031,-151.0,0.00029424,30]
[391293950,1760471449040,-151.0,0.00029424,30]
[391293951,1760471449049,-151.0,0.00029424,30]
[391293952,1760471449058,-151.0,0.00029424,30]
[391293953,1760471449067,-151.0,0.00029424,30]
[391293954,1760471449076,-151.0,0.00029424,30]
[391293955,1760471449085,-151.0,0.00029424,30]
[391293956,1760471449095,-151.0,0.00029424,30]
[391293957,1760471449105,-151.0,0.00029424,30]
[391293958,1760471449118,-153.330675,0.00029424,30]
[391293959,1760471449127,-1082.294524,0.00029424,30]
[391293960,1760471449135,-257.327442,0.00029424,30]
[391293961,1760471449144,-151.0,0.00029424,30]
[391293962,1760471449153,-1082.294524,0.00029424,30]
[391293963,1760471449163,-151.0,0.00029424,30]
[391293964,1760471449171,-257.327442,0.00029424,30]
[391293965,1760471449180,-151.0,0.00029424,30]
[391293966,1760471449189,-1082.294524,0.00029424,30]
[391293967,1760471449198,-151.0,0.00029424,30]
[391293968,1760471449207,-257.327442,0.00029424,30]
[391293969,1760471449216,-1082.294524,0.00029424,30]
[391293970,1760471449225,-151.0,0.00029424,30]
[391293971,1760471449234,-880.966001,0.00029424,30]